[Event "Titled Tuesday Blitz January 03 Early 2023"]
[White "Nathan, Nitish"]
[Black "Bazarov, Konstantin"]
[WhiteFideId "30927870"]
[BlackFideId "4137000"]
[WhiteElo "2071"]
[BlackElo "2235"]
[Result "1-0"]
[Round "07"]
[TimeControl "180+2"]
[Date "2023.01.03"]
[WhiteClock "0:00:12"]
[BlackClock "0:00:21"]

1. d4 {[%clk 0:03:00]}  Nf6 {[%clk 0:02:59]} 2. Bf4 {[%clk 0:03:00]}  e6 {[%clk 0:02:58]} 3. e3 {[%clk 0:03:00]}  c5 {[%clk 0:02:58]} 4. c3 {[%clk 0:02:59]}  b6 {[%clk 0:02:57]} 5. Nd2 {[%clk 0:02:59]}  Bb7 {[%clk 0:02:58]} 6. Ngf3 {[%clk 0:02:58]}  d6 {[%clk 0:02:58]} 7. Bd3 {[%clk 0:02:57]}  Be7 {[%clk 0:02:58]} 8. h3 {[%clk 0:02:57]}  Nc6 {[%clk 0:02:59]} 9. O-O {[%clk 0:02:57]}  O-O {[%clk 0:02:58]} 10. Bh2 {[%clk 0:02:56]}  Rc8 {[%clk 0:02:57]} 11. Re1 {[%clk 0:02:50]}  Qc7 {[%clk 0:02:56]} 12. Nc4 {[%clk 0:02:48]}  b5 {[%clk 0:02:54]} 13. Ncd2 {[%clk 0:02:48]}  Qb6 {[%clk 0:02:42]} 14. a4 {[%clk 0:02:44]}  a6 {[%clk 0:02:40]} 15. Qb3 {[%clk 0:02:41]}  b4 {[%clk 0:02:39]} 16. Nc4 {[%clk 0:02:37]}  Qa7 {[%clk 0:02:36]} 17. Nxd6 {[%clk 0:02:35]}  Rcd8 {[%clk 0:02:30]} 18. Nxb7 {[%clk 0:02:33]}  Qxb7 {[%clk 0:02:30]} 19. Ne5 {[%clk 0:02:27]}  Na5 {[%clk 0:02:28]} 20. Qc2 {[%clk 0:02:25]}  Rc8 {[%clk 0:02:26]} 21. Qe2 {[%clk 0:02:24]}  Ra8 {[%clk 0:02:23]} 22. dxc5 {[%clk 0:02:09]}  Bxc5 {[%clk 0:02:22]} 23. Ng4 {[%clk 0:02:03]}  Nd5 {[%clk 0:02:16]} 24. e4 {[%clk 0:02:02]}  Ne7 {[%clk 0:02:12]} 25. e5 {[%clk 0:01:57]}  Qb6 {[%clk 0:02:00]} 26. Bf4 {[%clk 0:01:47]}  Ng6 {[%clk 0:01:57]} 27. Bg3 {[%clk 0:01:46]}  Rfd8 {[%clk 0:01:51]} 28. h4 {[%clk 0:01:45]}  h6 {[%clk 0:01:44]} 29. Bxg6 {[%clk 0:01:41]}  fxg6 {[%clk 0:01:43]} 30. Qe4 {[%clk 0:01:41]}  Kf7 {[%clk 0:01:39]} 31. Rad1 {[%clk 0:01:22]}  Qc6 {[%clk 0:01:33]} 32. Qf4+ {[%clk 0:01:18]}  Kg8 {[%clk 0:01:30]} 33. Rxd8+ {[%clk 0:01:18]}  Rxd8 {[%clk 0:01:28]} 34. cxb4 {[%clk 0:01:19]}  Rd4 {[%clk 0:01:16]} 35. Nxh6+ {[%clk 0:00:50]}  Kh7 {[%clk 0:01:10]} 36. Qf7 {[%clk 0:00:45]}  Kxh6 {[%clk 0:00:53]} 37. Qg8 {[%clk 0:00:43]}  g5 {[%clk 0:00:52]} 38. Qh8+ {[%clk 0:00:33]}  Kg6 {[%clk 0:00:52]} 39. h5+ {[%clk 0:00:31]}  Kf7 {[%clk 0:00:52]} 40. bxc5 {[%clk 0:00:29]}  Qe8 {[%clk 0:00:49]} 41. Qh7 {[%clk 0:00:27]}  Qg8 {[%clk 0:00:43]} 42. Qg6+ {[%clk 0:00:27]}  Kf8 {[%clk 0:00:43]} 43. Qxg5 {[%clk 0:00:27]}  Qf7 {[%clk 0:00:42]} 44. Rc1 {[%clk 0:00:19]}  Nc6 {[%clk 0:00:42]} 45. h6 {[%clk 0:00:18]}  gxh6 {[%clk 0:00:38]} 46. Qxh6+ {[%clk 0:00:18]}  Ke8 {[%clk 0:00:38]} 47. Qh8+ {[%clk 0:00:17]}  Qf8 {[%clk 0:00:34]} 48. Qh5+ {[%clk 0:00:17]}  Qf7 {[%clk 0:00:32]} 49. Qe2 {[%clk 0:00:17]}  Qb7 {[%clk 0:00:27]} 50. Rd1 {[%clk 0:00:16]}  Qxb2 {[%clk 0:00:25]} 51. Qxb2 {[%clk 0:00:14]}  Rxd1+ {[%clk 0:00:25]} 52. Kh2 {[%clk 0:00:15]}  Nd4 {[%clk 0:00:24]} 53. Qb6 {[%clk 0:00:15]}  Ne2 {[%clk 0:00:23]} 54. Qxe6+ {[%clk 0:00:15]}  Kd8 {[%clk 0:00:23]} 55. Bh4+ {[%clk 0:00:14]}  Kc7 {[%clk 0:00:23]} 56. Qb6+ {[%clk 0:00:14]}  Kd7 {[%clk 0:00:23]} 57. c6+ {[%clk 0:00:14]}  Ke6 {[%clk 0:00:23]} 58. c7+ {[%clk 0:00:14]}  Kf5 {[%clk 0:00:24]} 59. c8=Q+ {[%clk 0:00:14]}  Ke4 {[%clk 0:00:22]} 60. Qe3+ {[%clk 0:00:14]}  Kd5 {[%clk 0:00:21]} 61. Qd7+ {[%clk 0:00:15]}  Kc4 {[%clk 0:00:20]} 62. Qxd1 {[%clk 0:00:14]}  Kb4 {[%clk 0:00:21]} 63. Qexe2 {[%clk 0:00:14]}  Ka5 {[%clk 0:00:22]} 64. Qd5+ {[%clk 0:00:13]}  Kb4 {[%clk 0:00:22]} 65. Qdc4+ {[%clk 0:00:14]}  Ka3 {[%clk 0:00:21]} 66. Qea2# {[%clk 0:00:12]} 1-0


[Site "https://www.chess.com"]

[Event "Titled Tuesday Blitz January 03 Early 2023"]
[White "Dwilewicz, Katarzyna"]
[Black "Rangel, Daniel"]
[WhiteFideId "1148486"]
[BlackFideId "2124475"]
[WhiteElo "2115"]
[BlackElo "2207"]
[Result "0-1"]
[Round "07"]
[TimeControl "180+2"]
[Date "2023.01.03"]
[WhiteClock "0:00:11"]
[BlackClock "0:00:44"]

1. e4 {[%clk 0:02:59]}  c5 {[%clk 0:02:57]} 2. Nf3 {[%clk 0:02:58]}  g6 {[%clk 0:02:57]} 3. c4 {[%clk 0:02:57]}  Bg7 {[%clk 0:02:56]} 4. d4 {[%clk 0:02:53]}  cxd4 {[%clk 0:02:55]} 5. Nxd4 {[%clk 0:02:53]}  Nc6 {[%clk 0:02:56]} 6. Be3 {[%clk 0:02:51]}  Nf6 {[%clk 0:02:56]} 7. Nc3 {[%clk 0:02:48]}  O-O {[%clk 0:02:55]} 8. Be2 {[%clk 0:02:48]}  Nxd4 {[%clk 0:02:55]} 9. Bxd4 {[%clk 0:02:47]}  d6 {[%clk 0:02:56]} 10. O-O {[%clk 0:02:46]}  Bd7 {[%clk 0:02:56]} 11. f3 {[%clk 0:02:38]}  Bc6 {[%clk 0:02:53]} 12. Qd2 {[%clk 0:02:36]}  Nd7 {[%clk 0:02:52]} 13. Be3 {[%clk 0:02:33]}  a5 {[%clk 0:02:50]} 14. b3 {[%clk 0:02:31]}  Nc5 {[%clk 0:02:49]} 15. Rab1 {[%clk 0:02:29]}  e6 {[%clk 0:02:48]} 16. Rfd1 {[%clk 0:02:25]}  Be5 {[%clk 0:02:49]} 17. Bd4 {[%clk 0:02:21]}  Qe7 {[%clk 0:02:21]} 18. Qe3 {[%clk 0:02:18]}  b6 {[%clk 0:02:19]} 19. Rd2 {[%clk 0:02:07]}  Qh4 {[%clk 0:02:06]} 20. Bxe5 {[%clk 0:02:02]}  dxe5 {[%clk 0:02:05]} 21. Rbd1 {[%clk 0:02:02]}  Rfd8 {[%clk 0:01:53]} 22. g3 {[%clk 0:01:59]}  Qe7 {[%clk 0:01:52]} 23. f4 {[%clk 0:01:36]}  exf4 {[%clk 0:01:49]} 24. gxf4 {[%clk 0:01:35]}  Qh4 {[%clk 0:01:36]} 25. Bf3 {[%clk 0:01:21]}  Rxd2 {[%clk 0:01:24]} 26. Rxd2 {[%clk 0:01:20]}  Rd8 {[%clk 0:01:22]} 27. Bg2 {[%clk 0:01:16]}  Rxd2 {[%clk 0:01:08]} 28. Qxd2 {[%clk 0:01:16]}  Qe7 {[%clk 0:01:09]} 29. e5 {[%clk 0:01:07]}  Bxg2 {[%clk 0:01:06]} 30. Kxg2 {[%clk 0:01:08]}  Qh4 {[%clk 0:01:00]} 31. Ne2 {[%clk 0:01:01]}  Qg4+ {[%clk 0:00:58]} 32. Ng3 {[%clk 0:00:57]}  Kg7 {[%clk 0:00:51]} 33. h3 {[%clk 0:00:55]}  Qxg3+ {[%clk 0:00:52]} 34. Kxg3 {[%clk 0:00:48]}  Ne4+ {[%clk 0:00:52]} 35. Kf3 {[%clk 0:00:46]}  Nxd2+ {[%clk 0:00:53]} 36. Ke3 {[%clk 0:00:45]}  Nb1 {[%clk 0:00:49]} 37. Kd3 {[%clk 0:00:41]}  f6 {[%clk 0:00:43]} 38. Kc2 {[%clk 0:00:36]}  fxe5 {[%clk 0:00:42]} 39. fxe5 {[%clk 0:00:35]}  Na3+ {[%clk 0:00:41]} 40. Kb2 {[%clk 0:00:35]}  g5 {[%clk 0:00:41]} 41. Kxa3 {[%clk 0:00:30]}  h5 {[%clk 0:00:42]} 42. b4 {[%clk 0:00:20]}  axb4+ {[%clk 0:00:42]} 43. Kxb4 {[%clk 0:00:20]}  g4 {[%clk 0:00:43]} 44. hxg4 {[%clk 0:00:18]}  hxg4 {[%clk 0:00:44]} 45. a4 {[%clk 0:00:13]}  g3 {[%clk 0:00:44]} 46. c5 {[%clk 0:00:10]}  bxc5+ {[%clk 0:00:43]} 47. Kxc5 {[%clk 0:00:11]}  g2 {[%clk 0:00:44]} 0-1


[Site "https://www.chess.com"]

[Event "Titled Tuesday Blitz January 03 Early 2023"]
[White "Kaminski, Victor"]
[Black "Fernandez Garcia, Gumersindo"]
[WhiteFideId "1131630"]
[BlackFideId "24516740"]
[WhiteElo "2247"]
[BlackElo "2160"]
[Result "1-0"]
[Round "07"]
[TimeControl "180+2"]
[Date "2023.01.03"]
[WhiteClock "0:00:43"]
[BlackClock "0:00:15"]

1. e4 {[%clk 0:03:00]}  a6 {[%clk 0:02:57]} 2. d4 {[%clk 0:02:57]}  g6 {[%clk 0:02:58]} 3. Bc4 {[%clk 0:02:54]}  Bg7 {[%clk 0:02:58]} 4. Nf3 {[%clk 0:02:51]}  b5 {[%clk 0:02:57]} 5. Bb3 {[%clk 0:02:51]}  Bb7 {[%clk 0:02:57]} 6. Qe2 {[%clk 0:02:41]}  e6 {[%clk 0:02:57]} 7. O-O {[%clk 0:02:41]}  d6 {[%clk 0:02:55]} 8. a4 {[%clk 0:02:39]}  b4 {[%clk 0:02:52]} 9. Nbd2 {[%clk 0:02:38]}  Ne7 {[%clk 0:02:51]} 10. Nc4 {[%clk 0:02:36]}  Nbc6 {[%clk 0:02:42]} 11. d5 {[%clk 0:02:34]}  Nd4 {[%clk 0:02:16]} 12. Nxd4 {[%clk 0:02:28]}  Bxd4 {[%clk 0:02:17]} 13. dxe6 {[%clk 0:02:29]}  fxe6 {[%clk 0:02:15]} 14. Na5 {[%clk 0:02:27]}  Bc8 {[%clk 0:02:15]} 15. Bg5 {[%clk 0:02:20]}  Bd7 {[%clk 0:01:51]} 16. Rad1 {[%clk 0:01:53]}  Bg7 {[%clk 0:01:33]} 17. Qg4 {[%clk 0:01:44]}  Qc8 {[%clk 0:01:24]} 18. f4 {[%clk 0:01:27]}  Rf8 {[%clk 0:01:01]} 19. Qh4 {[%clk 0:01:25]}  Nc6 {[%clk 0:00:42]} 20. Nxc6 {[%clk 0:01:12]}  Bxc6 {[%clk 0:00:43]} 21. Qxh7 {[%clk 0:01:12]}  Rf7 {[%clk 0:00:32]} 22. Qxg6 {[%clk 0:01:10]}  Bd7 {[%clk 0:00:21]} 23. f5 {[%clk 0:01:07]}  d5 {[%clk 0:00:18]} 24. fxe6 {[%clk 0:01:01]}  Bxe6 {[%clk 0:00:19]} 25. Rxf7 {[%clk 0:00:58]}  Bxf7 {[%clk 0:00:19]} 26. Qxg7 {[%clk 0:00:58]}  Qg4 {[%clk 0:00:17]} 27. Re1 {[%clk 0:00:43]}  d4 {[%clk 0:00:15]} 28. Qxf7# {[%clk 0:00:43]} 1-0


[Site "https://www.chess.com"]

[Event "Titled Tuesday Blitz January 03 Early 2023"]
[White "Koridze, Lile"]
[Black "Baches Garcia, Guillermo"]
[WhiteFideId "13612514"]
[BlackFideId "2209764"]
[WhiteElo "2191"]
[BlackElo "2327"]
[Result "0-1"]
[Round "07"]
[TimeControl "180+2"]
[Date "2023.01.03"]
[WhiteClock "0:00:02"]
[BlackClock "0:00:33"]

1. d4 {[%clk 0:03:00]}  Nf6 {[%clk 0:03:00]} 2. c4 {[%clk 0:03:00]}  e6 {[%clk 0:03:00]} 3. Nf3 {[%clk 0:02:54]}  d5 {[%clk 0:03:00]} 4. g3 {[%clk 0:02:54]}  Be7 {[%clk 0:02:59]} 5. Bg2 {[%clk 0:02:54]}  O-O {[%clk 0:03:00]} 6. O-O {[%clk 0:02:54]}  dxc4 {[%clk 0:03:00]} 7. Qc2 {[%clk 0:02:52]}  a6 {[%clk 0:02:58]} 8. a4 {[%clk 0:02:47]}  Bd7 {[%clk 0:02:58]} 9. Qxc4 {[%clk 0:02:46]}  Bc6 {[%clk 0:02:58]} 10. Nc3 {[%clk 0:02:44]}  b5 {[%clk 0:02:54]} 11. Qd3 {[%clk 0:01:54]}  b4 {[%clk 0:02:51]} 12. Nd1 {[%clk 0:01:51]}  Nbd7 {[%clk 0:02:41]} 13. Ne3 {[%clk 0:01:46]}  Be4 {[%clk 0:02:33]} 14. Qd1 {[%clk 0:01:44]}  c5 {[%clk 0:02:32]} 15. b3 {[%clk 0:01:43]}  Rc8 {[%clk 0:02:11]} 16. Bb2 {[%clk 0:01:40]}  cxd4 {[%clk 0:02:06]} 17. Nxd4 {[%clk 0:01:20]}  Bxg2 {[%clk 0:02:01]} 18. Kxg2 {[%clk 0:01:21]}  Nc5 {[%clk 0:01:56]} 19. Nc4 {[%clk 0:01:12]}  Nxb3 {[%clk 0:01:25]} 20. Qxb3 {[%clk 0:00:31]}  Qd5+ {[%clk 0:01:21]} 21. Kg1 {[%clk 0:00:29]}  Qxc4 {[%clk 0:01:05]} 22. Rac1 {[%clk 0:00:18]}  Qxb3 {[%clk 0:01:02]} 23. Nxb3 {[%clk 0:00:19]}  Nd5 {[%clk 0:00:59]} 24. e3 {[%clk 0:00:15]}  f6 {[%clk 0:00:52]} 25. Rfd1 {[%clk 0:00:08]}  Kf7 {[%clk 0:00:49]} 26. Nd4 {[%clk 0:00:08]}  Nc3 {[%clk 0:00:46]} 27. Bxc3 {[%clk 0:00:08]}  bxc3 {[%clk 0:00:46]} 28. Rc2 {[%clk 0:00:08]}  Bb4 {[%clk 0:00:45]} 29. Rb1 {[%clk 0:00:07]}  a5 {[%clk 0:00:42]} 30. Nb5 {[%clk 0:00:05]}  Rfd8 {[%clk 0:00:42]} 31. Rb3 {[%clk 0:00:04]}  Rd2 {[%clk 0:00:36]} 32. Rc1 {[%clk 0:00:03]}  c2 {[%clk 0:00:33]} 33. Rb2 {[%clk 0:00:02]}  Rd1+ {[%clk 0:00:33]} 0-1


[Site "https://www.chess.com"]

[Event "Titled Tuesday Blitz January 03 Early 2023"]
[White "Mogirzan, Matei-Valeriu"]
[Black "MIM06"]
[WhiteFideId "1257455"]
[WhiteElo "1813"]
[BlackElo "2273"]
[Result "1-0"]
[Round "07"]
[TimeControl "180+2"]
[Date "2023.01.03"]
[WhiteClock "0:00:03"]
[BlackClock "0:00:06"]

1. e4 {[%clk 0:03:00]}  c6 {[%clk 0:02:58]} 2. d4 {[%clk 0:02:58]}  d5 {[%clk 0:02:57]} 3. Nc3 {[%clk 0:02:56]}  dxe4 {[%clk 0:02:58]} 4. Nxe4 {[%clk 0:02:56]}  Nf6 {[%clk 0:02:58]} 5. Nxf6+ {[%clk 0:02:55]}  exf6 {[%clk 0:02:59]} 6. Bd3 {[%clk 0:02:54]}  Bd6 {[%clk 0:02:59]} 7. Qh5 {[%clk 0:02:53]}  Na6 {[%clk 0:02:52]} 8. c3 {[%clk 0:02:51]}  Nc7 {[%clk 0:02:52]} 9. Nf3 {[%clk 0:02:47]}  Be6 {[%clk 0:02:37]} 10. O-O {[%clk 0:02:42]}  Qd7 {[%clk 0:02:23]} 11. Nd2 {[%clk 0:02:17]}  O-O-O {[%clk 0:01:58]} 12. Qa5 {[%clk 0:02:06]}  Kb8 {[%clk 0:01:57]} 13. Ne4 {[%clk 0:02:03]}  Nd5 {[%clk 0:01:53]} 14. a3 {[%clk 0:01:52]}  Bc7 {[%clk 0:01:51]} 15. Qa4 {[%clk 0:01:48]}  f5 {[%clk 0:01:39]} 16. Nc5 {[%clk 0:01:39]}  Qd6 {[%clk 0:01:39]} 17. f4 {[%clk 0:01:38]}  Nb6 {[%clk 0:01:36]} 18. Qc2 {[%clk 0:01:23]}  g6 {[%clk 0:01:34]} 19. a4 {[%clk 0:01:18]}  Rhe8 {[%clk 0:01:21]} 20. a5 {[%clk 0:01:11]}  Nd7 {[%clk 0:01:20]} 21. b4 {[%clk 0:01:01]}  Bd5 {[%clk 0:01:09]} 22. Ba3 {[%clk 0:00:48]}  g5 {[%clk 0:01:04]} 23. b5 {[%clk 0:00:43]}  Nxc5 {[%clk 0:00:54]} 24. Bxc5 {[%clk 0:00:38]}  Qh6 {[%clk 0:00:54]} 25. b6 {[%clk 0:00:31]}  Bxf4 {[%clk 0:00:52]} 26. Rxf4 {[%clk 0:00:20]}  gxf4 {[%clk 0:00:52]} 27. a6 {[%clk 0:00:21]}  axb6 {[%clk 0:00:31]} 28. axb7 {[%clk 0:00:14]}  bxc5 {[%clk 0:00:20]} 29. Qb2 {[%clk 0:00:11]}  Kc7 {[%clk 0:00:18]} 30. Bxf5 {[%clk 0:00:04]}  Rg8 {[%clk 0:00:15]} 31. b8=Q+ {[%clk 0:00:03]}  Rxb8 {[%clk 0:00:14]} 32. Ra7+ {[%clk 0:00:03]}  Kd6 {[%clk 0:00:13]} 33. dxc5+ {[%clk 0:00:03]}  Kxc5 {[%clk 0:00:13]} 34. Qa3+ {[%clk 0:00:03]}  Kb5 {[%clk 0:00:06]} 35. Qa4+ {[%clk 0:00:02]}  Kb6 {[%clk 0:00:06]} 36. Qa5# {[%clk 0:00:03]} 1-0


[Site "https://www.chess.com"]

[Event "Titled Tuesday Blitz January 03 Early 2023"]
[White "Alfaro, William"]
[Black "Demchenko, Anton"]
[WhiteFideId "6100457"]
[BlackFideId "4160258"]
[WhiteElo "2134"]
[BlackElo "2623"]
[Result "0-1"]
[Round "07"]
[TimeControl "180+2"]
[Date "2023.01.03"]
[WhiteClock "0:00:20"]
[BlackClock "0:01:31"]

1. Nf3 {[%clk 0:02:59]}  a6 {[%clk 0:02:58]} 2. g3 {[%clk 0:02:59]}  b5 {[%clk 0:02:57]} 3. Bg2 {[%clk 0:02:59]}  Bb7 {[%clk 0:02:58]} 4. d3 {[%clk 0:03:00]}  e6 {[%clk 0:02:56]} 5. e4 {[%clk 0:03:00]}  c5 {[%clk 0:02:56]} 6. O-O {[%clk 0:03:00]}  Nc6 {[%clk 0:02:56]} 7. Re1 {[%clk 0:02:59]}  d6 {[%clk 0:02:56]} 8. Qe2 {[%clk 0:02:58]}  Be7 {[%clk 0:02:57]} 9. c3 {[%clk 0:02:59]}  Nf6 {[%clk 0:02:57]} 10. Nbd2 {[%clk 0:02:59]}  O-O {[%clk 0:02:57]} 11. Nf1 {[%clk 0:02:59]}  Re8 {[%clk 0:02:55]} 12. h4 {[%clk 0:02:59]}  Bf8 {[%clk 0:02:55]} 13. N1h2 {[%clk 0:02:59]}  Rc8 {[%clk 0:02:52]} 14. Bg5 {[%clk 0:02:59]}  h6 {[%clk 0:02:51]} 15. Be3 {[%clk 0:02:58]}  e5 {[%clk 0:02:50]} 16. Rad1 {[%clk 0:02:57]}  d5 {[%clk 0:02:49]} 17. Qc2 {[%clk 0:02:53]}  d4 {[%clk 0:02:49]} 18. Bc1 {[%clk 0:02:53]}  Qb6 {[%clk 0:02:47]} 19. a3 {[%clk 0:02:51]}  a5 {[%clk 0:02:46]} 20. g4 {[%clk 0:02:37]}  dxc3 {[%clk 0:02:43]} 21. bxc3 {[%clk 0:02:36]}  b4 {[%clk 0:02:44]} 22. Bh3 {[%clk 0:02:27]}  b3 {[%clk 0:02:34]} 23. Qb2 {[%clk 0:02:23]}  a4 {[%clk 0:02:30]} 24. g5 {[%clk 0:02:22]}  hxg5 {[%clk 0:02:30]} 25. hxg5 {[%clk 0:02:22]}  Nh5 {[%clk 0:02:30]} 26. Bxc8 {[%clk 0:02:10]}  Bxc8 {[%clk 0:02:30]} 27. Qe2 {[%clk 0:02:10]}  g6 {[%clk 0:02:26]} 28. Be3 {[%clk 0:02:03]}  Qc7 {[%clk 0:02:22]} 29. Qf1 {[%clk 0:02:01]}  c4 {[%clk 0:02:19]} 30. dxc4 {[%clk 0:01:58]}  Bxa3 {[%clk 0:02:19]} 31. Rd5 {[%clk 0:01:51]}  Bf8 {[%clk 0:02:18]} 32. Bc5 {[%clk 0:01:40]}  Nf4 {[%clk 0:02:16]} 33. Bxf8 {[%clk 0:01:35]}  Rxf8 {[%clk 0:02:16]} 34. c5 {[%clk 0:01:31]}  a3 {[%clk 0:02:12]} 35. Qb5 {[%clk 0:01:22]}  b2 {[%clk 0:02:12]} 36. Qb3 {[%clk 0:01:19]}  Qa7 {[%clk 0:02:09]} 37. Rd6 {[%clk 0:01:17]}  Be6 {[%clk 0:02:08]} 38. Rxe6 {[%clk 0:01:05]}  fxe6 {[%clk 0:02:06]} 39. Ng4 {[%clk 0:01:03]}  Rb8 {[%clk 0:02:05]} 40. Qa2 {[%clk 0:00:54]}  Kg7 {[%clk 0:01:58]} 41. Rd1 {[%clk 0:00:52]}  Ne2+ {[%clk 0:01:55]} 42. Kg2 {[%clk 0:00:47]}  Nf4+ {[%clk 0:01:52]} 43. Kg1 {[%clk 0:00:44]}  Qxc5 {[%clk 0:01:49]} 44. Rd7+ {[%clk 0:00:39]}  Kf8 {[%clk 0:01:50]} 45. Rd1 {[%clk 0:00:31]}  Qxc3 {[%clk 0:01:44]} 46. Nh4 {[%clk 0:00:29]}  Qh3 {[%clk 0:01:40]} 47. Nxg6+ {[%clk 0:00:23]}  Kg7 {[%clk 0:01:33]} 48. N6xe5 {[%clk 0:00:20]}  Ne2# {[%clk 0:01:31]} 0-1


[Site "https://www.chess.com"]

[Event "Titled Tuesday Blitz January 03 Early 2023"]
[White "Samunenkov, Ihor"]
[Black "Lacasa Diaz, Jose Antonio"]
[WhiteFideId "14187086"]
[BlackFideId "2203375"]
[WhiteElo "2501"]
[BlackElo "2359"]
[Result "0-1"]
[Round "07"]
[TimeControl "180+2"]
[Date "2023.01.03"]
[WhiteClock "0:00:02"]
[BlackClock "0:01:08"]

1. e4 {[%clk 0:03:00]}  c5 {[%clk 0:02:59]} 2. Nf3 {[%clk 0:03:00]}  e6 {[%clk 0:03:00]} 3. d4 {[%clk 0:03:00]}  cxd4 {[%clk 0:03:00]} 4. Nxd4 {[%clk 0:03:01]}  Nf6 {[%clk 0:03:01]} 5. Nc3 {[%clk 0:03:02]}  d6 {[%clk 0:03:01]} 6. g4 {[%clk 0:03:02]}  e5 {[%clk 0:03:02]} 7. Nf5 {[%clk 0:02:30]}  h5 {[%clk 0:03:01]} 8. Bb5+ {[%clk 0:02:04]}  Nc6 {[%clk 0:03:00]} 9. Bg5 {[%clk 0:01:49]}  hxg4 {[%clk 0:02:56]} 10. Nd5 {[%clk 0:01:49]}  Bxf5 {[%clk 0:02:50]} 11. Bxf6 {[%clk 0:01:45]}  gxf6 {[%clk 0:02:46]} 12. exf5 {[%clk 0:01:46]}  Rh4 {[%clk 0:02:43]} 13. c3 {[%clk 0:01:38]}  Bh6 {[%clk 0:02:42]} 14. Qa4 {[%clk 0:01:34]}  Bg5 {[%clk 0:02:31]} 15. Bxc6+ {[%clk 0:01:29]}  bxc6 {[%clk 0:02:30]} 16. Qxc6+ {[%clk 0:01:29]}  Kf8 {[%clk 0:02:31]} 17. Rd1 {[%clk 0:01:26]}  Kg7 {[%clk 0:02:20]} 18. Kf1 {[%clk 0:01:03]}  Rc8 {[%clk 0:02:18]} 19. Qa6 {[%clk 0:00:58]}  Qh8 {[%clk 0:02:06]} 20. Kg1 {[%clk 0:00:50]}  Rd8 {[%clk 0:01:38]} 21. Qxa7 {[%clk 0:00:23]}  Qh7 {[%clk 0:01:37]} 22. Qe7 {[%clk 0:00:17]}  Rh8 {[%clk 0:01:31]} 23. Nc7 {[%clk 0:00:11]}  Qxf5 {[%clk 0:01:19]} 24. Rxd6 {[%clk 0:00:05]}  Rxh2 {[%clk 0:01:11]} 25. Ne8+ {[%clk 0:00:02]}  Rxe8 {[%clk 0:01:08]} 0-1


[Site "https://www.chess.com"]

[Event "Titled Tuesday Blitz January 03 Early 2023"]
[White "Gjestemoen-VonHirsch, Andre"]
[Black "Korchmar, Vasiliy"]
[WhiteFideId "1539531"]
[BlackFideId "24131750"]
[WhiteElo "2314"]
[BlackElo "2438"]
[Result "0-1"]
[Round "07"]
[TimeControl "180+2"]
[Date "2023.01.03"]
[WhiteClock "0:00:46"]
[BlackClock "0:01:57"]

1. b3 {[%clk 0:03:00]}  g6 {[%clk 0:02:54]} 2. Bb2 {[%clk 0:03:00]}  Nf6 {[%clk 0:02:54]} 3. c4 {[%clk 0:03:01]}  Bg7 {[%clk 0:02:53]} 4. Nc3 {[%clk 0:03:01]}  b6 {[%clk 0:02:49]} 5. g3 {[%clk 0:03:00]}  Bb7 {[%clk 0:02:49]} 6. Nf3 {[%clk 0:03:01]}  Bxf3 {[%clk 0:02:49]} 7. exf3 {[%clk 0:03:01]}  c5 {[%clk 0:02:49]} 8. d4 {[%clk 0:02:53]}  cxd4 {[%clk 0:02:48]} 9. Nb5 {[%clk 0:02:53]}  O-O {[%clk 0:02:44]} 10. Bg2 {[%clk 0:02:50]}  Nc6 {[%clk 0:02:39]} 11. Nxd4 {[%clk 0:02:45]}  Nxd4 {[%clk 0:02:35]} 12. Bxd4 {[%clk 0:02:43]}  e5 {[%clk 0:02:24]} 13. Bb2 {[%clk 0:02:13]}  d5 {[%clk 0:02:24]} 14. cxd5 {[%clk 0:02:12]}  Qxd5 {[%clk 0:02:19]} 15. O-O {[%clk 0:02:11]}  Rad8 {[%clk 0:02:17]} 16. Qxd5 {[%clk 0:01:57]}  Nxd5 {[%clk 0:02:18]} 17. Rfe1 {[%clk 0:01:53]}  Rfe8 {[%clk 0:02:18]} 18. Rad1 {[%clk 0:01:51]}  Nb4 {[%clk 0:02:13]} 19. Rxd8 {[%clk 0:01:23]}  Rxd8 {[%clk 0:02:14]} 20. a3 {[%clk 0:01:22]}  Nc2 {[%clk 0:02:04]} 21. Rc1 {[%clk 0:01:09]}  Nd4 {[%clk 0:02:04]} 22. Bxd4 {[%clk 0:00:58]}  exd4 {[%clk 0:02:05]} 23. Bf1 {[%clk 0:00:57]}  d3 {[%clk 0:02:04]} 24. Rd1 {[%clk 0:00:57]}  d2 {[%clk 0:02:03]} 25. Bc4 {[%clk 0:00:54]}  Bc3 {[%clk 0:01:58]} 26. Kf1 {[%clk 0:00:54]}  Re8 {[%clk 0:01:58]} 27. Bb5 {[%clk 0:00:46]}  Re1+ {[%clk 0:01:57]} 0-1


[Site "https://www.chess.com"]